[Event "94th FRA-ch Open A 2019"]
[Site "Chartres"]
[Date "2019.08.25"]
[Round "9.2"]
[White "Haie, Arnaud"]
[Black "Girardon, Jerome"]
[Result "0-1"]
[ECO "A50"]
[WhiteElo "2130"]
[BlackElo "2164"]
[Annotator "NA"]
[PlyCount "212"]
[EventDate "2019.08.17"]
[EventType "swiss"]
[EventCountry "FRA"]
[SourceTitle "playchess.com"]
[Source "ChessBase"]
[SourceQuality "1"]
[TimeControl "40/5400+30:1800+30"]

1. d4 {[%emt 0:00:00]} Nf6 {[%emt 0:03:17]} 2. c4 {[%emt 0:00:26]} b6 {[%emt 0:00:33]} 3. Nc3 {[%emt 0:00:45]} Bb7 {[%emt 0:00:15]} 4. f3 {[%emt 0:00:37]} d5 {[%emt 0:00:14]} 5. cxd5 {[%emt 0:00:50]} Nxd5 {[%emt 0:00:12]} 6. e4 {[%emt 0:01:16]} Nxc3 {[%emt 0:00:13]} 7. bxc3 {[%emt 0:00:06]} g6 {[%emt 0:00:15]} 8. Be3 {[%emt 0:05:04]} Bg7 {[%emt 0:00:24]} 9. Qd2 {[%emt 0:06:23]} Qd6 {[%emt 0:00:18]} 10. Bd3 {[%emt 0:07:21]} Nd7 {[%emt 0:00:25]} 11. Ne2 {[%emt 0:01:17]} c5 {[%emt 0:14:35]} 12. Bf4 {[%emt 0:15:26]} e5 {[%emt 0:03:38]} 13. Bg3 {[%emt 0:00:21]} O-O {[%emt 0:01:00]} 14. d5 {[%emt 0:00:58]} f5 {[%emt 0:00:49]} 15. c4 {[%emt 0:03:27]} f4 {[%emt 0:15:27]} 16. Bf2 {[%emt 0:00:42]} g5 {[%emt 0:00:13]} 17. Nc3 {[%emt 0:00:36]} h5 {[%emt 0:00:30]} 18. Be2 {[%emt 0:01:15]} Qg6 {[%emt 0:03:09]} 19. Qb2 {[%emt 0:04:30]} Rf7 {[%emt 0:02:24]} 20. Nb5 {[%emt 0:02:00]} Nf8 {[%emt 0:04:08]} 21. a4 {[%emt 0:00:39]} a5 {[%emt 0:02:12]} 22. Nc3 {[%emt 0:04:14]} Nd7 {[%emt 0:00:51]} 23. Nb5 {[%emt 0:01:06]} g4 {[%emt 0:05:01]} 24. O-O-O {[%emt 0:01:26]} Bh6 {[%emt 0:00:51]} 25. Be1 {[%emt 0:01:18]} Rc8 {[%emt 0:08:27]} 26. Bc3 {[%emt 0:01:23]} Bg7 {[%emt 0:00:07]} 27. Na3 {[%emt 0:01:45]} Re8 {[%emt 0:03:00]} 28. Nb5 {[%emt 0:01:07]} Rc8 {[%emt 0:00:07]} 29. Kb1 {[%emt 0:00:37]} Re7 {[%emt 0:01:51]} 30. Rhg1 {[%emt 0:03:24]} Rf8 {[%emt 0:05:59]} 31. Nc7 {[%emt 0:01:50]} Qd6 {[%emt 0:03:36]} 32. Nb5 {[%emt 0:05:41]} Qg6 {[%emt 0:00:06]} 33. Ka1 {[%emt 0:00:21]} g3 {[%emt 0:01:38]} 34. hxg3 {[%emt 0:03:07]} fxg3 {[%emt 0:00:11]} 35. Nc7 {[%emt 0:00:32]} Qd6 {[%emt 0:03:08]} 36. Nb5 {[%emt 0:02:04]} Qg6 {[%emt 0:00:21]} 37. Rh1 {[%emt 0:00:16]} Bh6 {[%emt 0:03:48]} 38. Nc7 {[%emt 0:03:23]} Rf6 {[%emt 0:05:58]} 39. Rd3 {[%emt 0:03:14]} Bf4 {[%emt 0:00:47]} 40. Rhd1 {[%emt 0:04:08]} Bc8 {[%emt 0:00:47]} 41. Qb5 {[%emt 0:38:53]} Rd6 {[%emt 0:33:06]} 42. Qb2 {[%emt 0:02:08]} Nf8 {[%emt 0:01:57]} 43. Nb5 {[%emt 0:00:34]} Bd7 {[%emt 0:00:00]} 44. Rh1 {[%emt 0:00:00]} Bxb5 {[%emt 0:00:00]} 45. Qxb5 {[%emt 0:00:00]} Nd7 {[%emt 0:00:00]} 46. Qb2 {[%emt 0:00:00]} Rh7 {[%emt 0:00:00]} 47. Ka2 {[%emt 0:00:00]} h4 {[%emt 0:00:00]} 48. Rh3 {[%emt 0:00:00]} Rh5 {[%emt 0:00:00]} 49. Rd1 {[%emt 0:00:00]} Qf6 {[%emt 0:00:00]} 50. Rdh1 {[%emt 0:00:00]} Rh6 {[%emt 0:00:00]} 51. Qb5 {[%emt 0:00:00]} Qd8 {[%emt 0:00:00]} 52. Qb2 {[%emt 0:00:00]} Qe7 {[%emt 0:00:00]} 53. Bd2 {[%emt 0:00:00]} Qg5 {[%emt 0:00:00]} 54. Bc3 {[%emt 0:00:00]} Nf8 {[%emt 0:00:00]} 55. Qb5 {[%emt 0:00:00]} Qd8 {[%emt 0:00:00]} 56. Qb2 {[%emt 0:00:00]} Ng6 {[%emt 0:00:00]} 57. Be1 {[%emt 0:00:00]} Kh7 {[%emt 0:00:00]} 58. Qb5 {[%emt 0:00:00]} Bg5 {[%emt 0:00:15]} 59. Bc3 {[%emt 0:00:00]} Qd7 {[%emt 0:03:37]} 60. Qb3 {[%emt 0:00:00]} Qe8 {[%emt 0:00:13]} 61. Bd1 {[%emt 0:00:00]} Nf4 {[%emt 0:00:44]} 62. Qb2 {[%emt 0:00:00]} Rdg6 {[%emt 0:01:25]} 63. Ka3 {[%emt 0:00:19]} Nd3 {[%emt 0:01:05]} 64. Qe2 {[%emt 0:00:51]} Nf2 {[%emt 0:01:32]} 65. Qb2 {[%emt 0:00:32]} Bf4 {[%emt 0:00:12]} 66. Be2 {[%emt 0:00:29]} Nxh1 {[%emt 0:00:24]} 67. Rxh1 {[%emt 0:00:05]} h3 {[%emt 0:00:16]} 68. Bf1 {[%emt 0:00:44]} hxg2 {[%emt 0:01:26]} 69. Bxg2 {[%emt 0:00:35]} Qe7 {[%emt 0:01:23]} 70. Rg1 {[%emt 0:00:21]} Be3 {[%emt 0:00:34]} 71. Rd1 {[%emt 0:01:06]} Rh2 {[%emt 0:01:08]} 72. Bxe5 {[%emt 0:00:35]} Rxg2 {[%emt 0:00:32]} 73. d6 {[%emt 0:00:42]} Rxb2 {[%emt 0:00:39]} 74. dxe7 {[%emt 0:00:23]} Re6 {[%emt 0:00:39]} 75. Rd7 {[%emt 0:00:23]} Kg8 {[%emt 0:00:35]} 76. Bxb2 {[%emt 0:00:48]} Bf4 {[%emt 0:02:12]} 77. e8=Q+ {[%emt 0:01:37]} Rxe8 {[%emt 0:00:05]} 78. Rg7+ {[%emt 0:00:05]} Kf8 {[%emt 0:00:18]} 79. Rg4 {[%emt 0:02:28]} Bc7 {[%emt 0:00:29]} 80. Kb3 {[%emt 0:03:31]} Re7 {[%emt 0:00:10]} 81. Bc1 {[%emt 0:01:41]} Rh7 {[%emt 0:02:26]} 82. f4 {[%emt 0:01:10]} Rh1 {[%emt 0:00:24]} 83. Be3 {[%emt 0:00:53]} Rf1 {[%emt 0:01:27]} 84. Kc2 {[%emt 0:00:53]} g2 {[%emt 0:00:33]} 85. e5 {[%emt 0:00:24]} Ra1 {[%emt 0:00:13]} 86. Bc1 {[%emt 0:00:27]} Rxa4 {[%emt 0:00:29]} 87. Kc3 {[%emt 0:00:34]} b5 {[%emt 0:00:22]} 88. Rxg2 {[%emt 0:01:34]} Rxc4+ {[%emt 0:00:05]} 89. Kb2 {[%emt 0:00:05]} a4 {[%emt 0:00:23]} 90. Rh2 {[%emt 0:00:09]} a3+ {[%emt 0:00:35]} 91. Kb1 {[%emt 0:00:24]} b4 {[%emt 0:00:17]} 92. Re2 {[%emt 0:00:28]} Rd4 {[%emt 0:00:59]} 93. f5 {[%emt 0:00:12]} Rd5 {[%emt 0:00:15]} 94. Bh6+ {[%emt 0:00:16]} Ke8 {[%emt 0:00:17]} 95. Bg7 {[%emt 0:00:31]} b3 {[%emt 0:00:57]} 96. Re1 {[%emt 0:00:09]} Kf7 {[%emt 0:01:16]} 97. Bh8 {[%emt 0:01:23]} Kf8 {[%emt 0:00:34]} 98. Kc1 {[%emt 0:02:08]} c4 {[%emt 0:00:13]} 99. e6 {[%emt 0:00:26]} Rxf5 {[%emt 0:00:09]} 100. Bc3 {[%emt 0:00:09]} Bd6 {[%emt 0:00:27]} 101. Rd1 {[%emt 0:00:13]} Ke7 {[%emt 0:00:10]} 102. Re1 {[%emt 0:00:14]} Rf2 {[%emt 0:00:17]} 103. Kb1 {[%emt 0:00:12]} Rc2 {[%emt 0:00:31]} 104. Re3 {[%emt 0:00:34]} Rxc3 {[%emt 0:00:07]} 105. Rxc3 {[%emt 0:00:10]} a2+ {[%emt 0:00:04]} 106. Ka1 {[%emt 0:00:04]} Be5 {[%emt 0:00:38]} 0-1

[Event "94th FRA-ch Open A 2019"]
[Site "Chartres"]
[Date "2019.08.25"]
[Round "9.3"]
[White "Rivalin, Kenny"]
[Black "Droin, Augustin"]
[Result "1/2-1/2"]
[ECO "B90"]
[WhiteElo "2184"]
[BlackElo "2128"]
[Annotator "ChessBase"]
[PlyCount "83"]
[EventDate "2019.08.17"]
[EventType "swiss"]
[EventCountry "FRA"]
[SourceTitle "playchess.com"]
[Source "ChessBase"]
[SourceQuality "1"]
[TimeControl "40/5400+30:1800+30"]

1. e4 {[%emt 0:00:00]} c5 {[%emt 0:00:00]} 2. Nf3 {[%emt 0:00:00]} d6 {[%emt 0:00:00]} 3. d4 {[%emt 0:00:06]} cxd4 {[%emt 0:00:00]} 4. Nxd4 {[%emt 0:00:05]} Nf6 {[%emt 0:00:00]} 5. Nc3 {[%emt 0:00:04]} a6 {[%emt 0:00:01]} 6. f3 {[%emt 0:00:10]} e5 {[%emt 0:01:15]} 7. Nb3 {[%emt 0:00:10]} Be6 {[%emt 0:00:12]} 8. Be3 {[%emt 0:00:22]} h5 {[%emt 0:00:30]} 9. Qd2 {[%emt 0:00:31]} Nbd7 {[%emt 0:00:39]} 10. Nd5 {[%emt 0:05:08]} Bxd5 {[%emt 0:01:40]} 11. exd5 {[%emt 0:00:07]} b6 {[%emt 0:00:25]} 12. c4 {[%emt 0:01:06]} g6 {[%emt 0:00:53]} 13. Bd3 {[%emt 0:02:45]} Bg7 {[%emt 0:03:54]} 14. O-O {[%emt 0:00:41]} a5 {[%emt 0:02:02]} 15. Bg5 {[%emt 0:05:54]} a4 {[%emt 0:06:49]} 16. Nc1 {[%emt 0:00:38]} Qc7 {[%emt 0:01:47]} 17. Ne2 {[%emt 0:01:52]} O-O {[%emt 0:07:32]} 18. Nc3 {[%emt 0:02:13]} Nc5 {[%emt 0:02:52]} 19. Rac1 {[%emt 0:03:44]} Rfe8 {[%emt 0:02:33]} 20. Kh1 {[%emt 0:05:08]} Nh7 {[%emt 0:02:47]} 21. Be3 {[%emt 0:03:40]} f5 {[%emt 0:00:37]} 22. Bc2 {[%emt 0:08:59]} Qd7 {[%emt 0:03:40]} 23. Qd1 {[%emt 0:13:26]} e4 {[%emt 0:09:33]} 24. Bxc5 {[%emt 0:02:00]} Bxc3 {[%emt 0:00:14]} 25. Bd4 {[%emt 0:12:45]} Bxd4 {[%emt 0:07:55]} 26. Qxd4 {[%emt 0:00:03]} exf3 {[%emt 0:00:35]} 27. gxf3 {[%emt 0:01:00]} Rab8 {[%emt 0:06:21]} 28. Rg1 {[%emt 0:00:46]} Nf8 {[%emt 0:01:20]} 29. Qf6 {[%emt 0:10:49]} Kh7 {[%emt 0:01:01]} 30. Rg5 {[%emt 0:02:03]} Qg7 {[%emt 0:04:34]} 31. Qxd6 {[%emt 0:01:59]} Rbd8 {[%emt 0:07:10]} 32. Qxb6 {[%emt 0:03:26]} Rb8 {[%emt 0:00:44]} 33. Qc6 {[%emt 0:02:07]} Re2 {[%emt 0:01:04]} 34. Bxf5 {[%emt 0:07:44]} Rbxb2 {[%emt 0:10:20]} 35. Bxg6+ {[%emt 0:00:57]} Nxg6 {[%emt 0:01:29]} 36. Rxh5+ {[%emt 0:00:10]} Kg8 {[%emt 0:00:08]} 37. Rg1 {[%emt 0:00:37]} Rxh2+ {[%emt 0:01:12]} 38. Rxh2 {[%emt 0:00:14]} Rxh2+ {[%emt 0:00:04]} 39. Kxh2 {[%emt 0:00:03]} Qh6+ {[%emt 0:00:35]} 40. Kg2 {[%emt 0:01:03]} Qg5+ {[%emt 0:02:40]} 41. Kf1 {[%emt 0:34:36]} Qc1+ {[%emt 0:31:01]} 42. Kf2 {[%emt 0:00:00]} 1/2-1/2

[Event "94th FRA-ch Open A 2019"]
[Site "Chartres"]
[Date "2019.08.25"]
[Round "9.4"]
[White "Burille, Matthieu"]
[Black "Guignier, Nicolas"]
[Result "1/2-1/2"]
[ECO "C78"]
[WhiteElo "2174"]
[BlackElo "2151"]
[Annotator "NA"]
[PlyCount "112"]
[EventDate "2019.08.17"]
[EventType "swiss"]
[EventCountry "FRA"]
[SourceTitle "playchess.com"]
[Source "ChessBase"]
[SourceQuality "1"]
[TimeControl "40/5400+30:1800+30"]

1. e4 {[%emt 0:00:00]} e5 {[%emt 0:00:56]} 2. Nf3 {[%emt 0:00:00]} Nc6 {[%emt 0:00:10]} 3. Bb5 {[%emt 0:00:00]} a6 {[%emt 0:00:58]} 4. Ba4 {[%emt 0:00:02]} b5 {[%emt 0:00:06]} 5. Bb3 {[%emt 0:00:05]} Nf6 {[%emt 0:00:15]} 6. O-O {[%emt 0:00:12]} d6 {[%emt 0:00:13]} 7. d3 {[%emt 0:13:24]} Na5 {[%emt 0:03:44]} 8. Nc3 {[%emt 0:00:54]} Nxb3 {[%emt 0:04:07]} 9. axb3 {[%emt 0:00:04]} b4 {[%emt 0:18:51]} 10. Ne2 {[%emt 0:00:20]} c5 {[%emt 0:04:27]} 11. Ng3 {[%emt 0:01:30]} Be7 {[%emt 0:14:38]} 12. Nd2 {[%emt 0:03:32]} O-O {[%emt 0:00:07]} 13. Nc4 {[%emt 0:03:44]} a5 {[%emt 0:19:57]} 14. h3 {[%emt 0:17:34]} Ra6 {[%emt 0:00:27]} 15. Ra2 {[%emt 0:07:59]} Be6 {[%emt 0:11:02]} 16. Qf3 {[%emt 0:15:33]} Qd7 {[%emt 0:01:16]} 17. Bg5 {[%emt 0:01:52]} h6 {[%emt 0:03:22]} 18. Bxf6 {[%emt 0:00:14]} Bxf6 {[%emt 0:00:06]} 19. Rfa1 {[%emt 0:00:37]} Rfa8 {[%emt 0:00:52]} 20. Nf5 {[%emt 0:07:30]} d5 {[%emt 0:03:23]} 21. Nce3 {[%emt 0:00:36]} dxe4 {[%emt 0:01:09]} 22. dxe4 {[%emt 0:00:21]} Kh7 {[%emt 0:07:25]} 23. Rd1 {[%emt 0:08:34]} Qc8 {[%emt 0:00:35]} 24. Nd5 {[%emt 0:12:46]} Bd8 {[%emt 0:00:07]} 25. Nfe3 {[%emt 0:02:07]} a4 {[%emt 0:00:41]} 26. Rxa4 {[%emt 0:00:12]} Rxa4 {[%emt 0:00:07]} 27. bxa4 {[%emt 0:00:03]} Rxa4 {[%emt 0:00:08]} 28. Nc4 {[%emt 0:00:13]} Qa6 {[%emt 0:03:35]} 29. b3 {[%emt 0:03:11]} Ra2 {[%emt 0:00:51]} 30. Qd3 {[%emt 0:01:15]} f6 {[%emt 0:00:52]} 31. Kh2 {[%emt 0:00:09]} Qa7 {[%emt 0:00:30]} 32. g3 {[%emt 0:00:11]} Be7 {[%emt 0:00:19]} 33. Kg2 {[%emt 0:00:34]} Bf8 {[%emt 0:00:06]} 34. g4 {[%emt 0:00:51]} Qf7 {[%emt 0:00:12]} 35. Rd2 {[%emt 0:00:33]} Qg6 {[%emt 0:00:30]} 36. f4 {[%emt 0:00:32]} Bc8 {[%emt 0:01:17]} 37. f5 {[%emt 0:00:31]} Qg5 {[%emt 0:00:30]} 38. Qe3 {[%emt 0:00:30]} Ba6 {[%emt 0:00:30]} 39. Qxg5 {[%emt 0:00:30]} hxg5 {[%emt 0:00:30]} 40. Nce3 {[%emt 0:00:30]} c4 {[%emt 0:00:30]} 41. Rf2 {[%emt 0:30:30]} cxb3 {[%emt 0:30:30]} 42. cxb3 {[%emt 0:00:30]} Rxf2+ {[%emt 0:00:30]} 43. Kxf2 {[%emt 0:00:30]} Bd3 {[%emt 0:00:30]} 44. Kf3 {[%emt 0:00:30]} Bc5 {[%emt 0:00:30]} 45. Nc4 {[%emt 0:00:30]} Bxc4 {[%emt 0:00:30]} 46. bxc4 {[%emt 0:00:30]} b3 {[%emt 0:00:30]} 47. Ke2 {[%emt 0:00:30]} b2 {[%emt 0:00:30]} 48. Nc3 {[%emt 0:00:30]} Bd4 {[%emt 0:00:30]} 49. Nb1 {[%emt 0:00:30]} Kg8 {[%emt 0:00:30]} 50. Kd3 {[%emt 0:00:30]} Kf8 {[%emt 0:00:30]} 51. Kc2 {[%emt 0:00:30]} Ke7 {[%emt 0:00:30]} 52. Nd2 {[%emt 0:00:30]} Kd6 {[%emt 0:00:30]} 53. Nb3 {[%emt 0:00:30]} Bc3 {[%emt 0:00:30]} 54. Kb1 {[%emt 0:00:30]} Kc6 {[%emt 0:00:30]} 55. Kc2 {[%emt 0:00:30]} Kd6 {[%emt 0:00:30]} 56. Kb1 {[%emt 0:00:30]} Kc6 {[%emt 0:00:30]} 1/2-1/2

[Event "94th FRA-ch Open A 2019"]
[Site "Chartres"]
[Date "2019.08.25"]
[Round "9.5"]
[White "Vedovotto, Nicolas"]
[Black "Nguyen-Cadoret, Nathan"]
[Result "1/2-1/2"]
[ECO "A00"]
[WhiteElo "2199"]
[BlackElo "2122"]
[Annotator "NA"]
[PlyCount "66"]
[EventDate "2019.08.17"]
[EventType "swiss"]
[EventCountry "FRA"]
[SourceTitle "playchess.com"]
[Source "ChessBase"]
[SourceQuality "1"]
[TimeControl "40/5400+30:1800+30"]

1. Nc3 {[%emt 0:00:00]} e5 {[%emt 0:00:04]} 2. Nf3 {[%emt 0:00:00]} Nc6 {[%emt 0:00:06]} 3. d4 {[%emt 0:00:00]} exd4 {[%emt 0:01:00]} 4. Nxd4 {[%emt 0:00:00]} Nf6 {[%emt 0:01:19]} 5. Bg5 {[%emt 0:00:00]} Bb4 {[%emt 0:10:25]} 6. Qd3 {[%emt 0:00:21]} O-O {[%emt 0:03:27]} 7. a3 {[%emt 0:00:32]} Bc5 {[%emt 0:11:07]} 8. Nf3 {[%emt 0:00:46]} Be7 {[%emt 0:06:58]} 9. e3 {[%emt 0:04:37]} h6 {[%emt 0:01:04]} 10. Bh4 {[%emt 0:09:20]} d6 {[%emt 0:04:40]} 11. O-O-O {[%emt 0:02:40]} a6 {[%emt 0:03:43]} 12. Nd4 {[%emt 0:13:08]} Nxd4 {[%emt 0:12:59]} 13. Qxd4 {[%emt 0:10:16]} Be6 {[%emt 0:12:29]} 14. e4 {[%emt 0:18:09]} b5 {[%emt 0:10:18]} 15. e5 {[%emt 0:06:57]} dxe5 {[%emt 0:00:37]} 16. Qxe5 {[%emt 0:00:23]} Bd6 {[%emt 0:08:19]} 17. Qd4 {[%emt 0:01:28]} g5 {[%emt 0:01:46]} 18. Bg3 {[%emt 0:00:23]} Bxg3 {[%emt 0:00:24]} 19. hxg3 {[%emt 0:01:11]} Qxd4 {[%emt 0:00:05]} 20. Rxd4 {[%emt 0:00:05]} Kg7 {[%emt 0:02:39]} 21. Bd3 {[%emt 0:07:09]} Rad8 {[%emt 0:03:55]} 22. Rxd8 {[%emt 0:00:26]} Rxd8 {[%emt 0:00:03]} 23. Ne4 {[%emt 0:04:06]} Nxe4 {[%emt 0:00:34]} 24. Bxe4 {[%emt 0:00:07]} a5 {[%emt 0:01:03]} 25. c3 {[%emt 0:03:08]} c5 {[%emt 0:00:28]} 26. Rd1 {[%emt 0:03:30]} Rxd1+ {[%emt 0:00:20]} 27. Kxd1 {[%emt 0:00:05]} b4 {[%emt 0:01:06]} 28. cxb4 {[%emt 0:02:06]} cxb4 {[%emt 0:00:04]} 29. axb4 {[%emt 0:02:22]} axb4 {[%emt 0:00:04]} 30. Kd2 {[%emt 0:00:35]} Kf6 {[%emt 0:02:10]} 31. f4 {[%emt 0:00:23]} Ke7 {[%emt 0:01:26]} 32. Kd3 {[%emt 0:04:31]} Kd6 {[%emt 0:00:29]} 33. Kd4 {[%emt 0:00:14]} f6 {[%emt 0:00:28]} 1/2-1/2

[Event "94th FRA-ch Open A 2019"]
[Site "Chartres"]
[Date "2019.08.25"]
[Round "9.6"]
[White "Derige Kane, Yan"]
[Black "Bordais, Benjamin"]
[Result "1-0"]
[ECO "D27"]
[WhiteElo "2156"]
[BlackElo "2137"]
[Annotator "ChessBase"]
[PlyCount "65"]
[EventDate "2019.08.17"]
[EventType "swiss"]
[EventCountry "FRA"]
[SourceTitle "playchess.com"]
[Source "ChessBase"]
[SourceQuality "1"]
[TimeControl "40/5400+30:1800+30"]

1. d4 {[%emt 0:00:00]} d5 {[%emt 0:00:00]} 2. c4 {[%emt 0:00:00]} dxc4 {[%emt 0:00:00]} 3. e3 {[%emt 0:00:00]} a6 {[%emt 0:00:00]} 4. Bxc4 {[%emt 0:00:16]} Nf6 {[%emt 0:00:10]} 5. Nf3 {[%emt 0:00:54]} e6 {[%emt 0:00:05]} 6. O-O {[%emt 0:01:55]} c5 {[%emt 0:00:22]} 7. b3 {[%emt 1:30:25]} Be7 {[%emt 1:32:53]} 8. Bb2 {[%emt 0:00:30]} O-O {[%emt 0:00:00]} 9. Nbd2 {[%emt 0:00:30]} cxd4 {[%emt 0:01:00]} 10. Nxd4 {[%emt 0:00:30]} b5 {[%emt 0:00:30]} 11. Be2 {[%emt 0:00:00]} Ra7 {[%emt 0:00:30]} 12. N2f3 {[%emt 0:01:00]} Bb7 {[%emt 0:00:30]} 13. a4 {[%emt 0:00:30]} b4 {[%emt 0:00:30]} 14. Rc1 {[%emt 0:00:30]} Qd6 {[%emt 0:00:30]} 15. Rc2 {[%emt 0:00:30]} Ne4 {[%emt 0:00:30]} 16. Qc1 {[%emt 0:00:30]} Bd5 {[%emt 0:00:30]} 17. Rd1 {[%emt 0:00:00]} Rd7 {[%emt 0:00:30]} 18. Nd2 {[%emt 0:01:00]} Qe5 {[%emt 0:00:30]} 19. f4 {[%emt 0:00:30]} Qf6 {[%emt 0:00:00]} 20. N2f3 {[%emt 0:00:30]} Qh6 {[%emt 0:01:00]} 21. Ne5 {[%emt 0:00:30]} Rdd8 {[%emt 0:00:30]} 22. Ndf3 {[%emt 0:00:30]} f6 {[%emt 0:00:30]} 23. Nc4 {[%emt 0:00:00]} Nd7 {[%emt 0:00:30]} 24. Na5 {[%emt 0:00:00]} Ndc5 {[%emt 0:00:30]} 25. Bc4 {[%emt 0:00:00]} Bxc4 {[%emt 0:00:30]} 26. Rxc4 {[%emt 0:02:00]} Rxd1+ {[%emt 0:00:30]} 27. Qxd1 {[%emt 0:00:30]} f5 {[%emt 0:00:30]} 28. Nc6 {[%emt 0:00:00]} Bh4 {[%emt 0:00:30]} 29. g3 {[%emt 0:00:00]} Bf6 {[%emt 0:00:00]} 30. Bd4 {[%emt 0:00:00]} Nd7 {[%emt 0:00:00]} 31. Bxf6 {[%emt 0:00:00]} Ndxf6 {[%emt 0:00:00]} 32. Nfe5 {[%emt 0:00:00]} Nd5 {[%emt 0:00:00]} 33. Qxd5 {[%emt 0:00:00]} 1-0